Cogmind - Beta 10.2 @@@ ROGUE MODE // 2021.05.19 @ 21:31:26 Player: Trantor Result: Destroyed by D-53 Grenadier with Mini Grenade Launcher Performance ------------- Evolutions (0) 0 Regions Visited (2) 400 Robots Destroyed (28) 140 Value Destroyed (798) 798 Prototype IDs (3) 60 Alien Tech Used (0) 0 Bonus (-61) -61 TOTAL SCORE: 1337 Bonus ------- Friendly Fire -61 Cogmind --------- Core Integrity 0/250 Matter 249/300 Energy 85/100 System Corruption 0% Temperature Cool (0) Movement Core (600) Ox11 Location -10/Mines Parts ------- > --- POWER (1) -------- (None) > --- PROPULSION (2) --- (None) > --- UTILITY (2) ------ Large Storage Unit Large Storage Unit > --- WEAPON (2) ------- EM Shotgun > --- INVENTORY (16) --- Ion Engine Wheel Wheel Improved Heat Sink Large Storage Unit Large Matter Pod (150) Terrain Scanner Light Armor Plating Heavy EM Pulse Gun EM Shotgun EM Shotgun EM Shotgun Assault Rifle Rocket Launcher Rocket Launcher Datajack Peak State ------------ > --- POWER ------------ Ion Engine > --- PROPULSION ------- Light Treads Light Treads > --- UTILITY ---------- Large Storage Unit Large Storage Unit > --- WEAPON ----------- Heavy EM Pulse Gun EM Shotgun > --- INVENTORY -------- Ion Engine Wheel Wheel Heat Sink Improved Heat Sink Medium Storage Unit Large Storage Unit Light Armor Plating Heavy EM Pulse Gun Assault Rifle Rocket Launcher Rocket Launcher Rocket Launcher Rocket Launcher Datajack [Rating: 11] Favorites ----------- Power Ion Engine Engine Ion Engine Propulsion Light Treads Treads Light Treads Leg Aluminum Leg Utility Large Storage Unit Device Improved Heat Sink Storage Large Storage Unit Weapon EM Shotgun Energy Gun EM Shotgun Ballistic Gun Assault Rifle Launcher Rocket Launcher Build | -11 -10 -10 ------- Run | Scr Mat Min Slots Evolved . | . . . Power . | . . . Propulsion . | . . . Utility . | . . . Weapon . | . . . Parts Attached 22 | . 19 3 Power 2 | . 2 . Engine 2 | . 2 . Core . | . . . Reactor . | . . . Propulsion 5 | . 5 . Treads 5 | . 5 . Leg . | . . . Wheel . | . . . Hover . | . . . Flight . | . . . Utility 5 | . 5 . Device 2 | . 2 . Storage 3 | . 3 . Processor . | . . . Hackware . | . . . Protection . | . . . Artifact . | . . . Weapon 10 | . 7 3 Energy Gun 7 | . 6 1 Energy Cannon . | . . . Ballistic Gun 2 | . 1 1 Ballistic Cannon . | . . . Launcher 1 | . . 1 Special Weapon . | . . . Impact Weapon . | . . . Slashing Weapon . | . . . Piercing Weapon . | . . . Special Melee Weapon . | . . . Unidentified Prototypes . | . . . Parts Lost 7 | . 2 5 Power 1 | . . 1 Propulsion 2 | . . 2 Utility . | . . . Weapon 4 | . 2 2 Highest Loss Streak 4 | . 1 4 Average Slot Usage (%) 99 | . 99 99 Engine 13 | . 14 13 Treads 27 | . 27 27 Storage 26 | . 26 28 Energy Gun 25 | . 24 27 Ballistic Gun 2 | . 3 . Naked Turns . | . . . Heaviest Build 44 | 12 43 44 Greatest Support 40 | 20 40 40 Greatest Overweight (x) 1 | . 1 1 Average Overweight (x) . | . . 1 Largest Inventory Capacity 16 | . 16 16 Average Capacity 15 | . 14 16 Most Carried 16 | . 16 16 Average Carried 14 | . 14 15 Final Capacity 16 | 6 16 16 Final Carried 16 | 6 16 16 Class Distribution -------------------- 100% | Mutant Dominant Class ---------------- Mutant | -10/Materials Mutant | -10/Mines Resources | -11 -10 -10 ----------- Run | Scr Mat Min Matter Collected 600 | 200 375 25 Remotely . | . . . Salvage Created 1058 | . 709 349 Parts 60 | . 36 24 Haulers Intercepted 2 | . 2 . Recyclers Shooed . | . . . Parts Field Recycled . | . . . Retrieved Matter . | . . . Parts Self-Destructed . | . . . Prevented . | . . . Kills | -11 -10 -10 ------- Run | Scr Mat Min Combat Hostiles Destroyed 28 | . 12 16 Guns 19 | . 12 7 AOE 9 | . . 9 Classes Destroyed 6 | . 4 2 Hauler 2 | . 2 . Operator 2 | . 1 1 Watcher 3 | . 3 . Swarmer 3 | . . 3 Grunt 18 | . 12 6 Assembled 7 | . . 7 Best Kill Streak 7 | . 3 7 Combat Bots Only 7 | . 3 7 Max Kills in Single Turn 3 | . 2 3 Gunslinging 1 | . 1 . Exploded 3 | . . 3 Melee . | . . . Uniques/NPCs Destroyed . | . . . Combat | -11 -10 -10 -------- Run | Scr Mat Min Damage Taken 1066 | . 413 653 Core 255 | . 73 182 Absorbed by Shields . | . . . Core Remaining (%) 100 | 100 . . Volleys Fired 73 | . 47 26 Largest 2 | . 2 2 Hottest 90 | . 90 90 Shots Fired 138 | . 93 45 Gun 132 | . 93 39 Cannon . | . . . Launcher 6 | . . 6 Special . | . . . Kinetic 16 | . 16 . Thermal . | . . . Explosive 6 | . . 6 Electromagnetic 116 | . 77 39 Robot Hit Streak 8 | . 8 8 Robot Miss Streak 7 | . 7 2 Penetration Max . | . . . Secondary Targets 5 | . 4 1 Max Gunslinging Chain 1 | . 1 1 Shots Hit Robots 87 | . 53 34 Core Hits 64 | . 28 36 Critical Hits 1 | . 1 . Critical Kills . | . . . Critical Parts Destroyed 1 | . 1 . Melee Attacks . | . . . Impact . | . . . Slashing . | . . . Piercing . | . . . Sneak Attacks . | . . . Combat Hostiles . | . . . Follow-up Attacks . | . . . Damage Inflicted 2040 | . 1021 1019 Guns 1171 | . 815 356 Cannons . | . . . Explosions 855 | . 192 663 Melee . | . . . Ramming 14 | . 14 . Kinetic 119 | . 119 . Thermal 273 | . 192 81 Explosive 582 | . . 582 Electromagnetic 1052 | . 696 356 Impact . | . . . Slashing . | . . . Piercing . | . . . Highest Corruption . | . . . Average Corruption . | . . . Corruption Purged . | . . . Overload Shots . | . . . Overflow Damage 54 | . 28 26 Projectiles . | . . . Explosions 54 | . 28 26 Melee . | . . . Knockbacks . | . . . Impact . | . . . Kinetic . | . . . Secondary . | . . . Self-Inflicted Damage 120 | . 74 46 Shots 5 | . 2 3 Rammed 3 | . 3 . Targets Rammed 3 | . 3 . Kicked . | . . . Crushed . | . . . Highest Temperature 294 | . 246 294 Average Temperature 64 | . 50 91 Received Heat Transfer 314 | . 186 128 Effects 4 | . 2 2 Interference 4 | . 2 2 Siege Activations . | . . . Robots Corrupted . | . . . Combat Hostiles . | . . . Parts Fried 5 | . 4 1 Impact Corruptions . | . . . Robots Melted . | . . . Combat Hostiles . | . . . Parts Melted . | . . . Heat Transferred 400 | . 300 100 Parts Sabotaged . | . . . Parts Stolen . | . . . Parts Stripped . | . . . Power Chain Reactions 7 | . 4 3 Missiles Intercepted . | . . . Alert | -11 -10 -10 ------- Run | Scr Mat Min Peak Influence 192 | . 192 155 Initial . | . . . Average 52 | . 40 78 Maximum Alert Level . | . . . Low Security (%) 100 | . 100 100 Level 1 . | . . . Level 2 . | . . . Level 3 . | . . . Level 4 . | . . . Level 5 . | . . . High Security . | . . . Max Security . | . . . Squads Dispatched 2 | . 2 . Investigation 1 | . 1 . Extermination . | . . . Reinforcement 1 | . 1 . Assault . | . . . Garrison . | . . . Intercept . | . . . Construction Impeded . | . . . Haulers Reinforced . | . . . Stealth | -11 -10 -10 --------- Run | Scr Mat Min Distress Signals 1 | . 1 . Communications Jammed . | . . . Distress Signals . | . . . Times Spotted 48 | . 24 24 Peak Tracking Total 11 | . 3 11 Tactical Retreats 2 | . 1 1 Traps | -11 -10 -10 ------- Run | Scr Mat Min Traps Triggered 3 | . 3 . Indirectly . | . . . Trap Hack Attempts . | . . . Triggered . | . . . Disarmed . | . . . Reprogrammed . | . . . Reused . | . . . Traps Extracted . | . . . Installed . | . . . Triggered . | . . . Machines | -11 -10 -10 ---------- Run | Scr Mat Min Machines Disabled 1 | . . 1 Max in Single Turn 1 | . . 1 Machines Sabotaged . | . . . Garrisons Compromised . | . . . Overloaded Fab Kills . | . . . Fab Network Shutdowns . | . . . Hacking | -11 -10 -10 --------- Run | Scr Mat Min Machines Accessed 8 | . 8 . Terminals 7 | . 7 . Fabricators . | . . . Repair Stations 1 | . 1 . Recycling Units . | . . . Scanalyzers . | . . . Garrison Access . | . . . Total Hacks 22 | . 22 . Successful 10 | . 10 . Failed 11 | . 11 . Catastrophic 3 | . 3 . Database Lockouts 1 | . 1 . Manual 17 | . 17 . Terminals 18 | . 18 . Fabricators . | . . . Repair Stations 4 | . 4 . Recycling Units . | . . . Scanalyzers . | . . . Garrison Access . | . . . Terminal Hacks 5 | . 5 . Robot Analysis 1 | . 1 . Prototype ID Bank 1 | . 1 . Branch Access Points 1 | . 1 . Unreport Threat 2 | . 2 . Fabricator Hacks . | . . . Repair Station Hacks 4 | . 4 . Scan Component 2 | . 2 . Repair 2 | . 2 . Recycling Unit Hacks . | . . . Scanalyzer . | . . . Garrison Access Hacks . | . . . Unauthorized Hacks 1 | . 1 . Terminals 1 | . 1 . Assimilate 1 | . 1 . Fabricators . | . . . Repair Stations . | . . . Recycling Units . | . . . Scanalyzers . | . . . Garrison Access . | . . . Data Cores Recovered . | . . . Used . | . . . Hacking Detections 8 | . 8 . Full Trace Events . | . . . Feedback Events . | . . . Feedback Blocked . | . . . Robot Schematics Acquired . | . . . Robots Built . | . . . Matter . | . . . Time . | . . . Total Robot Build Rating . | . . . Part Schematics Acquired . | . . . Parts Built . | . . . Matter . | . . . Time . | . . . Total Part Build Rating . | . . . Parts Repaired 2 | . 2 . Time 58 | . 58 . Parts Recycled . | . . . Recycled Matter . | . . . Retrieved Matter . | . . . Retrieved Components . | . . . Parts Scanalyzed . | . . . Part Schematics Acquired . | . . . Parts Damaged . | . . . Bothacking | -11 -10 -10 ------------ Run | Scr Mat Min Used RIF Installer . | . . . Robots Hacked . | . . . Non-combat . | . . . Combat . | . . . Robot Hacks Applied . | . . . Relay Couplers Released . | . . . Robots Rewired . | . . . Allies Hacked . | . . . Hacks Repelled . | . . . Allies | -11 -10 -10 -------- Run | Scr Mat Min Total Allies 1 | . 1 . Largest Group 1 | . 1 1 Highest-Rated Group 10 | . 10 10 Highest-Rated Ally 10 | . 10 10 Total Orders . | . . . Ally Attacks . | . . . Total Damage . | . . . Kills . | . . . Allies Corrupted . | . . . Allies Melted . | . . . Intel | -11 -10 -10 ------- Run | Scr Mat Min Robot Analysis Total 1 | . 1 . Derelict Logs Recovered 2 | . . 2 Drone Launches . | . . . Drone Recoveries . | . . . Exploration | -11 -10 -10 ------------- Run | Scr Mat Min Turns Passed 3129 | . 2091 1038 Spaces Moved 1498 | 1 1002 495 Core . | . . . Treads 1487 | . 992 495 Legs 11 | 1 10 . Wheels . | . . . Hover . | . . . Flight . | . . . Fastest Speed 120 | 120 120 180 Average Speed 177 | 120 177 180 Slowest Speed 180 | 120 180 180 Overloaded Moves . | . . . Propulsion Burnouts . | . . . Robots Hopped . | . . . Cave-ins Triggered . | . . . Exploration Rate (%) 62 | 2 99 86 Regions Visited 2 Branch Regions 1 Pre-discovered Areas . | . . . Known Exits Taken 1 | . 1 . Unknown Exits Taken 1 | 1 . . Scrap Searched 3 | . . 3 Spaces Dug . | . . . Terrain Destroyed 75 | . 21 54 Melee . | . . . Projectile . | . . . AOE 75 | . 21 54 Terrain Rammed . | . . . Walls Destroyed . | . . . Machines Disabled . | . . . Actions | -11 -10 -10 --------- Run | Scr Mat Min Total 1821 | . 1224 597 Wait 197 | . 125 72 Move 1496 | . 1001 495 Hop . | . . . Pick Up 17 | . 16 1 Fast Attach 8 | . 8 . Attach 3 | . 2 1 Detach 1 | . 1 . Swap 11 | . 9 2 Drop 12 | . 12 . Fire 73 | . 47 26 Melee . | . . . Ram . | . . . Kick . | . . . Crush 3 | . 3 . Escape Stasis . | . . . Rewire . | . . . Trap . | . . . Miscellaneous . | . . . Route ------- -11/Scrapyard -10/Materials (discovered 5 exits: [*Mat x3] / *Min x2) -10/Mines (discovered 2 exits: [*Mat x2]) History --------- Turn | Location | Event 1 | -11/Scrapyard | Discovered new exit (range 0) 1 | -11/Scrapyard | Entered Materials 212 | -10/Materials | Discovered new exit (range 10) 294 | -10/Materials | Identified exit to Mines 304 | -10/Materials | Build established: Mutant 566 | -10/Materials | Discovered new exit (range 9) 834 | -10/Materials | Discovered new exit (range 12) 1121 | -10/Materials | Central database locked down 1294 | -10/Materials | Discovered new exit (range 13) 1870 | -10/Materials | Repaired Hvy. EM Pulse Gun 1897 | -10/Materials | Repaired Lgt. Treads 2092 | -10/Materials | Entered Mines 2092 | -10/Mines | Accompanied by 1 ally 2100 | -10/Mines | Met a Derelict bent on vengeance 2147 | -10/Mines | Discovered new exit (range 10) 2401 | -10/Mines | Learned 2 Materials zone layouts 2471 | -10/Mines | Discovered new exit (range 9) 3079 | -10/Mines | Assembled infested the area 3084 | -10/Mines | Assisted by a Guerilla fighting off Assembled 3125 | -10/Mines | Core integrity fell below 50% 3130 | -10/Mines | Core integrity fell below 20% 3130 | -10/Mines | Destroyed by D-53 Grenadier with Mini Grenade Launcher Last Messages --------------- 03114_ as-26250 destroyed. 03115_ K-01 Serf destroyed. 03116_ Destroyed Asb. F-torch. 03116_ Destroyed Asb. Hover Unit. 03116_ as-39642 destroyed. 03116_ as-39958 destroyed. 03116_ as-73370 destroyed. 03118_ as-86201 destroyed. 03118_ Destroyed Asb. Hover Unit. 03118_ as-86323 destroyed. 03120_ Lgt. Treads destroyed. 03120_ Destroyed Asb. Hover Unit. 03121_ OP-OGR(g) destroyed. 03124_ Acquired 5 matter. 03124_ as-00684 destroyed. 03125_ The unstable cave ceiling collapses. 03127_ Lgt. Treads destroyed. 03127_ as-41987 destroyed. 03128_ The unstable cave ceiling collapses. 03129_ Rocket Launcher destroyed. Map ----- +----------------------------------------------------+ | ????????##############????????# """ """ #???# | | ??????????????????????????????# #?### | | ???????????????????????#####??# ### | | ??????????????????????## ##?####### #### | | ???????????????????#### #???????# #??# | | ??????????????###### #???????# #### | | ??????????????# ##???????# | | ??????????????## #????????# | | ???????????????## #????????####### | | ????????????????# #??????????????## | | ????????????????# ##???####???????# | | ????????????????# #### ##??????# | | ????????????????## ## #??????# | | ?????????????????## ## ######## | | ??????????????????# | | ???????????####??## # !% | | ??????????## #### % ## ########## | | ?????????## d # ?#####????????# | | ????????## d ???????????????# | | ????????# ## ????????????????# | | ???????## ### ?????????????????# | | ???????# ###?## ??????????????????# | | ???????# ##??## ##??????????????????# | | ???????## #???# #??????????????????? | | ????????## #???# #??????????????????? | | ?????????###???# @ #???????????????????? | | ??????????????# #??????????????????? | | ??????????????## ##??????????????????? | | ???????????????# #???????????????????? | | ??????????????# ##???????????????????? | | ??????????????# a #????????????????????? | | ?????????????# ##???????????????????? | | ?????????????## a #???????????????????? | | ?????????????? #???????????????????? | | ?????????????# #???????????????????? | | ????????????? a ##???????????????????? | | ????????????## ##????????????????????? | | ????????????? #?????????????????????? | | ?????????????##a ??????????????????????? | | ????????????? ##??????????????????????? | | ???????????? #??????????????????????? | | ???????????### ?????????????????????? | | ?????????????## ????????????????????? | | ??????????????## #???????????????????? | | ???????????????## ##?????????????###???? | | ????????????????## #?????????????## ##?? | | ?????????????????## #?????????????# ### | | ??????????????????? #?????????????# | | ??????????????????? ###??????????????# | | ??????????????????? #????????????????## "" | +----------------------------------------------------+ Best States ------------- Heat Dissipation 39 Energy Generation 10 Energy Capacity 250 Matter Stores 300 Matter Capacity 300 Sight Range 16 Terrain Scan Density 10 Evasion (%) 40 Recoil Reduction 2 Item Schematics ----------------- None Robot Schematics ------------------ None Fabricated ------------ Nothing Alien Tech Used ----------------- None Achievements -------------- None Challenges ------------ None Game ------ Seed ChromaticMiniProtection Manual? 0 Play Time 00:25:02 Cumulative 118.8 hours Start 2021.05.19 @ 21:07:26 End 2021.05.19 @ 21:31:26 Sessions 1 Manual Loads 0 Difficulty Rogue Special Mode None Game No. 75 Rogue 50 Adventurer 25 Explorer 0 Win Type - Total 0 Types 0/0/0/0/0/0/0/0/0 Lore% 43 Gallery% 43 Achievement% 37 Wizard Run 0 Options --------- ASCII 0 Keyboard 1 Movement Vi Keybinds 1 Fullscreen 2 Font 18/X11Bold Map View 76x50 Tactical HUD 1 Map Filters NONE Filters NONE Steam 1 RUN: dcc52379-3dbf-4c47-8e14-db63367b974a